{"text_format":"3","workbook":"xlsx","n_sheets":2,"sheets":["Kilo Verme İzleyicisi","hesaplamalar"],"not_rendered":{"charts":1,"defined_names":10},"read":"whole","date_system":"1900"}

{"sheet":"Kilo Verme İzleyicisi","index":0,"n_rows":19,"n_cols":9,"rows_kept":19,"merged":[[0,3,0,7],[0,8,0,9],[1,3,2,9]]}
[null,"HEDEF AĞIRLIK","GRAFİK GÖRÜNÜMÜ","Ad",{"$nulls":4},"KİLO VERME"]
[{"$nulls":3},"İZLEYİCİ"]
[null,{"v":172,"d":"172.0"},"HAFTALIK"]
[null,"HEDEF AĞIRLIĞI GÖSTER","Evet"]
[null,"Geçerli ağırlığı izleyen Ağırlık İzleyici Grafiği bu hücrededir. Alan grafiğinin üzerinde Hedef Ağırlık satırının gösterilmesi için C4 hücresinde \"Evet\"i seçin."]
[]
[null,"TARİH","KİLO"]
[null,{"$f":"TODAY()-77","v":"2022-01-19"},{"v":176,"d":"176.0"}]
[null,{"$f":"TODAY()-70","v":"2022-01-26"},{"v":176,"d":"176.0"}]
[null,{"$f":"TODAY()-63","v":"2022-02-02"},177.6]
[null,{"$f":"TODAY()-56","v":"2022-02-09"},176.5]
[null,{"$f":"TODAY()-49","v":"2022-02-16"},176.1]
[null,{"$f":"TODAY()-42","v":"2022-02-23"},{"v":174,"d":"174.0"}]
[null,{"$f":"TODAY()-35","v":"2022-03-02"},173.5]
[null,{"$f":"TODAY()-28","v":"2022-03-09"},{"v":173,"d":"173.0"}]
[null,{"$f":"TODAY()-21","v":"2022-03-16"},{"v":172,"d":"172.0"}]
[null,{"$f":"TODAY()-14","v":"2022-03-23"},{"v":172,"d":"172.0"}]
[null,{"$f":"TODAY()-7","v":"2022-03-30"},{"v":173,"d":"173.0"}]
[null,{"$f":"TODAY()","v":"2022-04-06"},{"v":172,"d":"172.0"}]

{"sheet":"hesaplamalar","index":1,"n_rows":107,"n_cols":17,"rows_kept":107,"hidden":true}
["*** Bu sayfa gizli kalmalıdır ***"]
[]
[{"$f":"COUNTIF(A5:A107,FALSE)","v":12},"Dönemler","Değerler",{"$nulls":3},{"$f":"COUNTIF(H5:H28,\">\"&0)","v":4},"Dönemler",null,"Değerler"]
[null,"Hafta",null,null,{"$f":"IFERROR(IF(HedefAğırlığıGöster=\"Evet\", TRUE, FALSE),FALSE)","v":true},null,null,"Ay","EOM"]
[{"$f":"FALSE","v":false},{"$f":"IFERROR(IF(LEN('Kilo Verme İzleyicisi'!$B8)=0,TODAY(),'Kilo Verme İzleyicisi'!$B8),TODAY())","v":"2022-01-19"},{"$f":"IFERROR(IF(LEN('Kilo Verme İzleyicisi'!$C8)=0,HedefAğırlık,'Kilo Verme İzleyicisi'!$C8),0)","v":176},{"$f":"IFERROR(IF(MIN(GrafikDönemleri)=0,TODAY(),MIN(GrafikDönemleri)),TODAY())","v":"2022-01-19"},{"$f":"IFERROR(IF($A$5,0,IF($E$4,HedefAğırlık,NA())),0)","v":172},null,null,{"$f":"IFERROR(IF($A$5,TODAY(),DATE(YEAR($B5),MONTH($B5),1)),\"\")","v":"2022-01-01"},{"$f":"IFERROR(IF($A$5,TODAY(),EOMONTH($H5,0)),\"\")","v":"2022-01-31"},{"$f":"IFERROR(IF($A$5,0,AVERAGEIFS(Kilo[KİLO],Kilo[TARİH],\">=\"&$H5,Kilo[TARİH],\"<=\"&$I5)),NA())","v":176}]
[{"$f":"IF((LEN('Kilo Verme İzleyicisi'!$C9)=0),TRUE)","v":false},{"$f":"IFERROR(IF(A6,0,IF(LEN('Kilo Verme İzleyicisi'!$B9)=0,0,'Kilo Verme İzleyicisi'!$B9)),\"\")","v":"2022-01-26"},{"$f":"IFERROR(IF(A6,0,IF(LEN('Kilo Verme İzleyicisi'!$C9)=0,0,'Kilo Verme İzleyicisi'!$C9)),\"\")","v":176},{"$f":"IFERROR(IF(MAX(GrafikDönemleri)=0,TODAY(),MAX(GrafikDönemleri)),TODAY())","v":"2022-04-06"},{"$f":"IFERROR(IF($A$5,0,IF($E$4,HedefAğırlık,NA())),0)","v":172},null,null,{"$f":"IF($I5+1>MAX($B:$B),NA(),$I5+1)","v":"2022-02-01"},{"$f":"EOMONTH($H6,0)","v":"2022-02-28"},{"$f":"IFERROR(AVERAGEIFS(Kilo[KİLO],Kilo[TARİH],\">=\"&$H6,Kilo[TARİH],\"<=\"&$I6),NA())","v":176.05}]
[{"$f":"IF((LEN('Kilo Verme İzleyicisi'!$C10)=0),TRUE)","v":false},{"$f":"IFERROR(IF(A7,0,IF(LEN('Kilo Verme İzleyicisi'!$B10)=0,0,'Kilo Verme İzleyicisi'!$B10)),\"\")","v":"2022-02-02"},{"$f":"IFERROR(IF(A7,0,IF(LEN('Kilo Verme İzleyicisi'!$C10)=0,0,'Kilo Verme İzleyicisi'!$C10)),\"\")","v":177.6},{"$nulls":4},"2022-03-01","2022-03-31",{"$f":"IFERROR(AVERAGEIFS(Kilo[KİLO],Kilo[TARİH],\">=\"&$H7,Kilo[TARİH],\"<=\"&$I7),NA())","v":172.7}]
[{"$f":"IF((LEN('Kilo Verme İzleyicisi'!$C11)=0),TRUE)","v":false},{"$f":"IFERROR(IF(A8,0,IF(LEN('Kilo Verme İzleyicisi'!$B11)=0,0,'Kilo Verme İzleyicisi'!$B11)),\"\")","v":"2022-02-09"},{"$f":"IFERROR(IF(A8,0,IF(LEN('Kilo Verme İzleyicisi'!$C11)=0,0,'Kilo Verme İzleyicisi'!$C11)),\"\")","v":176.5},{"$nulls":4},"2022-04-01","2022-04-30",{"$f":"IFERROR(AVERAGEIFS(Kilo[KİLO],Kilo[TARİH],\">=\"&$H8,Kilo[TARİH],\"<=\"&$I8),NA())","v":172}]
[{"$f":"IF((LEN('Kilo Verme İzleyicisi'!$C12)=0),TRUE)","v":false},{"$f":"IFERROR(IF(A9,0,IF(LEN('Kilo Verme İzleyicisi'!$B12)=0,0,'Kilo Verme İzleyicisi'!$B12)),\"\")","v":"2022-02-16"},{"$f":"IFERROR(IF(A9,0,IF(LEN('Kilo Verme İzleyicisi'!$C12)=0,0,'Kilo Verme İzleyicisi'!$C12)),\"\")","v":176.1},{"$nulls":4},{"$error":"#N/A"},{"$error":"#N/A"},{"$f":"IFERROR(AVERAGEIFS(Kilo[KİLO],Kilo[TARİH],\">=\"&$H9,Kilo[TARİH],\"<=\"&$I9),NA())","v":{"$error":"#N/A"}}]
[{"$f":"IF((LEN('Kilo Verme İzleyicisi'!$C13)=0),TRUE)","v":false},{"$f":"IFERROR(IF(A10,0,IF(LEN('Kilo Verme İzleyicisi'!$B13)=0,0,'Kilo Verme İzleyicisi'!$B13)),\"\")","v":"2022-02-23"},{"$f":"IFERROR(IF(A10,0,IF(LEN('Kilo Verme İzleyicisi'!$C13)=0,0,'Kilo Verme İzleyicisi'!$C13)),\"\")","v":174},{"$nulls":4},{"$error":"#N/A"},{"$error":"#N/A"},{"$f":"IFERROR(AVERAGEIFS(Kilo[KİLO],Kilo[TARİH],\">=\"&$H10,Kilo[TARİH],\"<=\"&$I10),NA())","v":{"$error":"#N/A"}}]
[{"$f":"IF((LEN('Kilo Verme İzleyicisi'!$C14)=0),TRUE)","v":false},{"$f":"IFERROR(IF(A11,0,IF(LEN('Kilo Verme İzleyicisi'!$B14)=0,0,'Kilo Verme İzleyicisi'!$B14)),\"\")","v":"2022-03-02"},{"$f":"IFERROR(IF(A11,0,IF(LEN('Kilo Verme İzleyicisi'!$C14)=0,0,'Kilo Verme İzleyicisi'!$C14)),\"\")","v":173.5},{"$nulls":4},{"$error":"#N/A"},{"$error":"#N/A"},{"$f":"IFERROR(AVERAGEIFS(Kilo[KİLO],Kilo[TARİH],\">=\"&$H11,Kilo[TARİH],\"<=\"&$I11),NA())","v":{"$error":"#N/A"}},{"$nulls":6},{"$f":"MAX($B:$B)","v":"2022-04-06"}]
[{"$f":"IF((LEN('Kilo Verme İzleyicisi'!$C15)=0),TRUE)","v":false},{"$f":"IFERROR(IF(A12,0,IF(LEN('Kilo Verme İzleyicisi'!$B15)=0,0,'Kilo Verme İzleyicisi'!$B15)),\"\")","v":"2022-03-09"},{"$f":"IFERROR(IF(A12,0,IF(LEN('Kilo Verme İzleyicisi'!$C15)=0,0,'Kilo Verme İzleyicisi'!$C15)),\"\")","v":173},{"$nulls":4},{"$error":"#N/A"},{"$error":"#N/A"},{"$f":"IFERROR(AVERAGEIFS(Kilo[KİLO],Kilo[TARİH],\">=\"&$H12,Kilo[TARİH],\"<=\"&$I12),NA())","v":{"$error":"#N/A"}}]
[{"$f":"IF((LEN('Kilo Verme İzleyicisi'!$C16)=0),TRUE)","v":false},{"$f":"IFERROR(IF(A13,0,IF(LEN('Kilo Verme İzleyicisi'!$B16)=0,0,'Kilo Verme İzleyicisi'!$B16)),\"\")","v":"2022-03-16"},{"$f":"IFERROR(IF(A13,0,IF(LEN('Kilo Verme İzleyicisi'!$C16)=0,0,'Kilo Verme İzleyicisi'!$C16)),\"\")","v":172},{"$nulls":4},{"$error":"#N/A"},{"$error":"#N/A"},{"$f":"IFERROR(AVERAGEIFS(Kilo[KİLO],Kilo[TARİH],\">=\"&$H13,Kilo[TARİH],\"<=\"&$I13),NA())","v":{"$error":"#N/A"}}]
[{"$f":"IF((LEN('Kilo Verme İzleyicisi'!$C17)=0),TRUE)","v":false},{"$f":"IFERROR(IF(A14,0,IF(LEN('Kilo Verme İzleyicisi'!$B17)=0,0,'Kilo Verme İzleyicisi'!$B17)),\"\")","v":"2022-03-23"},{"$f":"IFERROR(IF(A14,0,IF(LEN('Kilo Verme İzleyicisi'!$C17)=0,0,'Kilo Verme İzleyicisi'!$C17)),\"\")","v":172},{"$nulls":4},{"$error":"#N/A"},{"$error":"#N/A"},{"$f":"IFERROR(AVERAGEIFS(Kilo[KİLO],Kilo[TARİH],\">=\"&$H14,Kilo[TARİH],\"<=\"&$I14),NA())","v":{"$error":"#N/A"}}]
[{"$f":"IF((LEN('Kilo Verme İzleyicisi'!$C18)=0),TRUE)","v":false},{"$f":"IFERROR(IF(A15,0,IF(LEN('Kilo Verme İzleyicisi'!$B18)=0,0,'Kilo Verme İzleyicisi'!$B18)),\"\")","v":"2022-03-30"},{"$f":"IFERROR(IF(A15,0,IF(LEN('Kilo Verme İzleyicisi'!$C18)=0,0,'Kilo Verme İzleyicisi'!$C18)),\"\")","v":173},{"$nulls":4},{"$error":"#N/A"},{"$error":"#N/A"},{"$f":"IFERROR(AVERAGEIFS(Kilo[KİLO],Kilo[TARİH],\">=\"&$H15,Kilo[TARİH],\"<=\"&$I15),NA())","v":{"$error":"#N/A"}}]
[{"$f":"IF((LEN('Kilo Verme İzleyicisi'!$C19)=0),TRUE)","v":false},{"$f":"IFERROR(IF(A16,0,IF(LEN('Kilo Verme İzleyicisi'!$B19)=0,0,'Kilo Verme İzleyicisi'!$B19)),\"\")","v":"2022-04-06"},{"$f":"IFERROR(IF(A16,0,IF(LEN('Kilo Verme İzleyicisi'!$C19)=0,0,'Kilo Verme İzleyicisi'!$C19)),\"\")","v":172},{"$nulls":4},{"$error":"#N/A"},{"$error":"#N/A"},{"$f":"IFERROR(AVERAGEIFS(Kilo[KİLO],Kilo[TARİH],\">=\"&$H16,Kilo[TARİH],\"<=\"&$I16),NA())","v":{"$error":"#N/A"}}]
[{"$f":"IF((LEN('Kilo Verme İzleyicisi'!$C20)=0),TRUE)","v":true},{"$f":"IFERROR(IF(A17,0,IF(LEN('Kilo Verme İzleyicisi'!$B20)=0,0,'Kilo Verme İzleyicisi'!$B20)),\"\")","v":"00:00:00"},{"$f":"IFERROR(IF(A17,0,IF(LEN('Kilo Verme İzleyicisi'!$C20)=0,0,'Kilo Verme İzleyicisi'!$C20)),\"\")","v":0},{"$nulls":4},{"$error":"#N/A"},{"$error":"#N/A"},{"$f":"IFERROR(AVERAGEIFS(Kilo[KİLO],Kilo[TARİH],\">=\"&$H17,Kilo[TARİH],\"<=\"&$I17),NA())","v":{"$error":"#N/A"}}]
[{"$f":"IF((LEN('Kilo Verme İzleyicisi'!$C21)=0),TRUE)","v":true},{"$f":"IFERROR(IF(A18,0,IF(LEN('Kilo Verme İzleyicisi'!$B21)=0,0,'Kilo Verme İzleyicisi'!$B21)),\"\")","v":"00:00:00"},{"$f":"IFERROR(IF(A18,0,IF(LEN('Kilo Verme İzleyicisi'!$C21)=0,0,'Kilo Verme İzleyicisi'!$C21)),\"\")","v":0},{"$nulls":4},{"$error":"#N/A"},{"$error":"#N/A"},{"$f":"IFERROR(AVERAGEIFS(Kilo[KİLO],Kilo[TARİH],\">=\"&$H18,Kilo[TARİH],\"<=\"&$I18),NA())","v":{"$error":"#N/A"}}]
[{"$f":"IF((LEN('Kilo Verme İzleyicisi'!$C22)=0),TRUE)","v":true},{"$f":"IFERROR(IF(A19,0,IF(LEN('Kilo Verme İzleyicisi'!$B22)=0,0,'Kilo Verme İzleyicisi'!$B22)),\"\")","v":"00:00:00"},{"$f":"IFERROR(IF(A19,0,IF(LEN('Kilo Verme İzleyicisi'!$C22)=0,0,'Kilo Verme İzleyicisi'!$C22)),\"\")","v":0},{"$nulls":4},{"$error":"#N/A"},{"$error":"#N/A"},{"$f":"IFERROR(AVERAGEIFS(Kilo[KİLO],Kilo[TARİH],\">=\"&$H19,Kilo[TARİH],\"<=\"&$I19),NA())","v":{"$error":"#N/A"}}]
[{"$f":"IF((LEN('Kilo Verme İzleyicisi'!$C23)=0),TRUE)","v":true},{"$f":"IFERROR(IF(A20,0,IF(LEN('Kilo Verme İzleyicisi'!$B23)=0,0,'Kilo Verme İzleyicisi'!$B23)),\"\")","v":"00:00:00"},{"$f":"IFERROR(IF(A20,0,IF(LEN('Kilo Verme İzleyicisi'!$C23)=0,0,'Kilo Verme İzleyicisi'!$C23)),\"\")","v":0},{"$nulls":4},{"$error":"#N/A"},{"$error":"#N/A"},{"$f":"IFERROR(AVERAGEIFS(Kilo[KİLO],Kilo[TARİH],\">=\"&$H20,Kilo[TARİH],\"<=\"&$I20),NA())","v":{"$error":"#N/A"}}]
[{"$f":"IF((LEN('Kilo Verme İzleyicisi'!$C24)=0),TRUE)","v":true},{"$f":"IFERROR(IF(A21,0,IF(LEN('Kilo Verme İzleyicisi'!$B24)=0,0,'Kilo Verme İzleyicisi'!$B24)),\"\")","v":"00:00:00"},{"$f":"IFERROR(IF(A21,0,IF(LEN('Kilo Verme İzleyicisi'!$C24)=0,0,'Kilo Verme İzleyicisi'!$C24)),\"\")","v":0},{"$nulls":4},{"$error":"#N/A"},{"$error":"#N/A"},{"$f":"IFERROR(AVERAGEIFS(Kilo[KİLO],Kilo[TARİH],\">=\"&$H21,Kilo[TARİH],\"<=\"&$I21),NA())","v":{"$error":"#N/A"}}]
[{"$f":"IF((LEN('Kilo Verme İzleyicisi'!$C25)=0),TRUE)","v":true},{"$f":"IFERROR(IF(A22,0,IF(LEN('Kilo Verme İzleyicisi'!$B25)=0,0,'Kilo Verme İzleyicisi'!$B25)),\"\")","v":"00:00:00"},{"$f":"IFERROR(IF(A22,0,IF(LEN('Kilo Verme İzleyicisi'!$C25)=0,0,'Kilo Verme İzleyicisi'!$C25)),\"\")","v":0},{"$nulls":4},{"$error":"#N/A"},{"$error":"#N/A"},{"$f":"IFERROR(AVERAGEIFS(Kilo[KİLO],Kilo[TARİH],\">=\"&$H22,Kilo[TARİH],\"<=\"&$I22),NA())","v":{"$error":"#N/A"}}]
[{"$f":"IF((LEN('Kilo Verme İzleyicisi'!$C26)=0),TRUE)","v":true},{"$f":"IFERROR(IF(A23,0,IF(LEN('Kilo Verme İzleyicisi'!$B26)=0,0,'Kilo Verme İzleyicisi'!$B26)),\"\")","v":"00:00:00"},{"$f":"IFERROR(IF(A23,0,IF(LEN('Kilo Verme İzleyicisi'!$C26)=0,0,'Kilo Verme İzleyicisi'!$C26)),\"\")","v":0},{"$nulls":4},{"$error":"#N/A"},{"$error":"#N/A"},{"$f":"IFERROR(AVERAGEIFS(Kilo[KİLO],Kilo[TARİH],\">=\"&$H23,Kilo[TARİH],\"<=\"&$I23),NA())","v":{"$error":"#N/A"}}]
[{"$f":"IF((LEN('Kilo Verme İzleyicisi'!$C27)=0),TRUE)","v":true},{"$f":"IFERROR(IF(A24,0,IF(LEN('Kilo Verme İzleyicisi'!$B27)=0,0,'Kilo Verme İzleyicisi'!$B27)),\"\")","v":"00:00:00"},{"$f":"IFERROR(IF(A24,0,IF(LEN('Kilo Verme İzleyicisi'!$C27)=0,0,'Kilo Verme İzleyicisi'!$C27)),\"\")","v":0},{"$nulls":4},{"$error":"#N/A"},{"$error":"#N/A"},{"$f":"IFERROR(AVERAGEIFS(Kilo[KİLO],Kilo[TARİH],\">=\"&$H24,Kilo[TARİH],\"<=\"&$I24),NA())","v":{"$error":"#N/A"}}]
[{"$f":"IF((LEN('Kilo Verme İzleyicisi'!$C28)=0),TRUE)","v":true},{"$f":"IFERROR(IF(A25,0,IF(LEN('Kilo Verme İzleyicisi'!$B28)=0,0,'Kilo Verme İzleyicisi'!$B28)),\"\")","v":"00:00:00"},{"$f":"IFERROR(IF(A25,0,IF(LEN('Kilo Verme İzleyicisi'!$C28)=0,0,'Kilo Verme İzleyicisi'!$C28)),\"\")","v":0},{"$nulls":4},{"$error":"#N/A"},{"$error":"#N/A"},{"$f":"IFERROR(AVERAGEIFS(Kilo[KİLO],Kilo[TARİH],\">=\"&$H25,Kilo[TARİH],\"<=\"&$I25),NA())","v":{"$error":"#N/A"}}]
[{"$f":"IF((LEN('Kilo Verme İzleyicisi'!$C29)=0),TRUE)","v":true},{"$f":"IFERROR(IF(A26,0,IF(LEN('Kilo Verme İzleyicisi'!$B29)=0,0,'Kilo Verme İzleyicisi'!$B29)),\"\")","v":"00:00:00"},{"$f":"IFERROR(IF(A26,0,IF(LEN('Kilo Verme İzleyicisi'!$C29)=0,0,'Kilo Verme İzleyicisi'!$C29)),\"\")","v":0},{"$nulls":4},{"$error":"#N/A"},{"$error":"#N/A"},{"$f":"IFERROR(AVERAGEIFS(Kilo[KİLO],Kilo[TARİH],\">=\"&$H26,Kilo[TARİH],\"<=\"&$I26),NA())","v":{"$error":"#N/A"}}]
[{"$f":"IF((LEN('Kilo Verme İzleyicisi'!$C30)=0),TRUE)","v":true},{"$f":"IFERROR(IF(A27,0,IF(LEN('Kilo Verme İzleyicisi'!$B30)=0,0,'Kilo Verme İzleyicisi'!$B30)),\"\")","v":"00:00:00"},{"$f":"IFERROR(IF(A27,0,IF(LEN('Kilo Verme İzleyicisi'!$C30)=0,0,'Kilo Verme İzleyicisi'!$C30)),\"\")","v":0},{"$nulls":4},{"$error":"#N/A"},{"$error":"#N/A"},{"$f":"IFERROR(AVERAGEIFS(Kilo[KİLO],Kilo[TARİH],\">=\"&$H27,Kilo[TARİH],\"<=\"&$I27),NA())","v":{"$error":"#N/A"}}]
[{"$f":"IF((LEN('Kilo Verme İzleyicisi'!$C31)=0),TRUE)","v":true},{"$f":"IFERROR(IF(A28,0,IF(LEN('Kilo Verme İzleyicisi'!$B31)=0,0,'Kilo Verme İzleyicisi'!$B31)),\"\")","v":"00:00:00"},{"$f":"IFERROR(IF(A28,0,IF(LEN('Kilo Verme İzleyicisi'!$C31)=0,0,'Kilo Verme İzleyicisi'!$C31)),\"\")","v":0},{"$nulls":4},{"$error":"#N/A"},{"$error":"#N/A"},{"$f":"IFERROR(AVERAGEIFS(Kilo[KİLO],Kilo[TARİH],\">=\"&$H28,Kilo[TARİH],\"<=\"&$I28),NA())","v":{"$error":"#N/A"}}]
[{"$f":"IF((LEN('Kilo Verme İzleyicisi'!$C32)=0),TRUE)","v":true},{"$f":"IFERROR(IF(A29,0,IF(LEN('Kilo Verme İzleyicisi'!$B32)=0,0,'Kilo Verme İzleyicisi'!$B32)),\"\")","v":"00:00:00"},{"$f":"IFERROR(IF(A29,0,IF(LEN('Kilo Verme İzleyicisi'!$C32)=0,0,'Kilo Verme İzleyicisi'!$C32)),\"\")","v":0}]
[{"$f":"IF((LEN('Kilo Verme İzleyicisi'!$C33)=0),TRUE)","v":true},{"$f":"IFERROR(IF(A30,0,IF(LEN('Kilo Verme İzleyicisi'!$B33)=0,0,'Kilo Verme İzleyicisi'!$B33)),\"\")","v":"00:00:00"},{"$f":"IFERROR(IF(A30,0,IF(LEN('Kilo Verme İzleyicisi'!$C33)=0,0,'Kilo Verme İzleyicisi'!$C33)),\"\")","v":0}]
[{"$f":"IF((LEN('Kilo Verme İzleyicisi'!$C34)=0),TRUE)","v":true},{"$f":"IFERROR(IF(A31,0,IF(LEN('Kilo Verme İzleyicisi'!$B34)=0,0,'Kilo Verme İzleyicisi'!$B34)),\"\")","v":"00:00:00"},{"$f":"IFERROR(IF(A31,0,IF(LEN('Kilo Verme İzleyicisi'!$C34)=0,0,'Kilo Verme İzleyicisi'!$C34)),\"\")","v":0}]
[{"$f":"IF((LEN('Kilo Verme İzleyicisi'!$C35)=0),TRUE)","v":true},{"$f":"IFERROR(IF(A32,0,IF(LEN('Kilo Verme İzleyicisi'!$B35)=0,0,'Kilo Verme İzleyicisi'!$B35)),\"\")","v":"00:00:00"},{"$f":"IFERROR(IF(A32,0,IF(LEN('Kilo Verme İzleyicisi'!$C35)=0,0,'Kilo Verme İzleyicisi'!$C35)),\"\")","v":0}]
[{"$f":"IF((LEN('Kilo Verme İzleyicisi'!$C36)=0),TRUE)","v":true},{"$f":"IFERROR(IF(A33,0,IF(LEN('Kilo Verme İzleyicisi'!$B36)=0,0,'Kilo Verme İzleyicisi'!$B36)),\"\")","v":"00:00:00"},{"$f":"IFERROR(IF(A33,0,IF(LEN('Kilo Verme İzleyicisi'!$C36)=0,0,'Kilo Verme İzleyicisi'!$C36)),\"\")","v":0}]
[{"$f":"IF((LEN('Kilo Verme İzleyicisi'!$C37)=0),TRUE)","v":true},{"$f":"IFERROR(IF(A34,0,IF(LEN('Kilo Verme İzleyicisi'!$B37)=0,0,'Kilo Verme İzleyicisi'!$B37)),\"\")","v":"00:00:00"},{"$f":"IFERROR(IF(A34,0,IF(LEN('Kilo Verme İzleyicisi'!$C37)=0,0,'Kilo Verme İzleyicisi'!$C37)),\"\")","v":0}]
[{"$f":"IF((LEN('Kilo Verme İzleyicisi'!$C38)=0),TRUE)","v":true},{"$f":"IFERROR(IF(A35,0,IF(LEN('Kilo Verme İzleyicisi'!$B38)=0,0,'Kilo Verme İzleyicisi'!$B38)),\"\")","v":"00:00:00"},{"$f":"IFERROR(IF(A35,0,IF(LEN('Kilo Verme İzleyicisi'!$C38)=0,0,'Kilo Verme İzleyicisi'!$C38)),\"\")","v":0}]
[{"$f":"IF((LEN('Kilo Verme İzleyicisi'!$C39)=0),TRUE)","v":true},{"$f":"IFERROR(IF(A36,0,IF(LEN('Kilo Verme İzleyicisi'!$B39)=0,0,'Kilo Verme İzleyicisi'!$B39)),\"\")","v":"00:00:00"},{"$f":"IFERROR(IF(A36,0,IF(LEN('Kilo Verme İzleyicisi'!$C39)=0,0,'Kilo Verme İzleyicisi'!$C39)),\"\")","v":0}]
[{"$f":"IF((LEN('Kilo Verme İzleyicisi'!$C40)=0),TRUE)","v":true},{"$f":"IFERROR(IF(A37,0,IF(LEN('Kilo Verme İzleyicisi'!$B40)=0,0,'Kilo Verme İzleyicisi'!$B40)),\"\")","v":"00:00:00"},{"$f":"IFERROR(IF(A37,0,IF(LEN('Kilo Verme İzleyicisi'!$C40)=0,0,'Kilo Verme İzleyicisi'!$C40)),\"\")","v":0}]
[{"$f":"IF((LEN('Kilo Verme İzleyicisi'!$C41)=0),TRUE)","v":true},{"$f":"IFERROR(IF(A38,0,IF(LEN('Kilo Verme İzleyicisi'!$B41)=0,0,'Kilo Verme İzleyicisi'!$B41)),\"\")","v":"00:00:00"},{"$f":"IFERROR(IF(A38,0,IF(LEN('Kilo Verme İzleyicisi'!$C41)=0,0,'Kilo Verme İzleyicisi'!$C41)),\"\")","v":0}]
[{"$f":"IF((LEN('Kilo Verme İzleyicisi'!$C42)=0),TRUE)","v":true},{"$f":"IFERROR(IF(A39,0,IF(LEN('Kilo Verme İzleyicisi'!$B42)=0,0,'Kilo Verme İzleyicisi'!$B42)),\"\")","v":"00:00:00"},{"$f":"IFERROR(IF(A39,0,IF(LEN('Kilo Verme İzleyicisi'!$C42)=0,0,'Kilo Verme İzleyicisi'!$C42)),\"\")","v":0}]
[{"$f":"IF((LEN('Kilo Verme İzleyicisi'!$C43)=0),TRUE)","v":true},{"$f":"IFERROR(IF(A40,0,IF(LEN('Kilo Verme İzleyicisi'!$B43)=0,0,'Kilo Verme İzleyicisi'!$B43)),\"\")","v":"00:00:00"},{"$f":"IFERROR(IF(A40,0,IF(LEN('Kilo Verme İzleyicisi'!$C43)=0,0,'Kilo Verme İzleyicisi'!$C43)),\"\")","v":0}]
[{"$f":"IF((LEN('Kilo Verme İzleyicisi'!$C44)=0),TRUE)","v":true},{"$f":"IFERROR(IF(A41,0,IF(LEN('Kilo Verme İzleyicisi'!$B44)=0,0,'Kilo Verme İzleyicisi'!$B44)),\"\")","v":"00:00:00"},{"$f":"IFERROR(IF(A41,0,IF(LEN('Kilo Verme İzleyicisi'!$C44)=0,0,'Kilo Verme İzleyicisi'!$C44)),\"\")","v":0}]
[{"$f":"IF((LEN('Kilo Verme İzleyicisi'!$C45)=0),TRUE)","v":true},{"$f":"IFERROR(IF(A42,0,IF(LEN('Kilo Verme İzleyicisi'!$B45)=0,0,'Kilo Verme İzleyicisi'!$B45)),\"\")","v":"00:00:00"},{"$f":"IFERROR(IF(A42,0,IF(LEN('Kilo Verme İzleyicisi'!$C45)=0,0,'Kilo Verme İzleyicisi'!$C45)),\"\")","v":0}]
[{"$f":"IF((LEN('Kilo Verme İzleyicisi'!$C46)=0),TRUE)","v":true},{"$f":"IFERROR(IF(A43,0,IF(LEN('Kilo Verme İzleyicisi'!$B46)=0,0,'Kilo Verme İzleyicisi'!$B46)),\"\")","v":"00:00:00"},{"$f":"IFERROR(IF(A43,0,IF(LEN('Kilo Verme İzleyicisi'!$C46)=0,0,'Kilo Verme İzleyicisi'!$C46)),\"\")","v":0}]
[{"$f":"IF((LEN('Kilo Verme İzleyicisi'!$C47)=0),TRUE)","v":true},{"$f":"IFERROR(IF(A44,0,IF(LEN('Kilo Verme İzleyicisi'!$B47)=0,0,'Kilo Verme İzleyicisi'!$B47)),\"\")","v":"00:00:00"},{"$f":"IFERROR(IF(A44,0,IF(LEN('Kilo Verme İzleyicisi'!$C47)=0,0,'Kilo Verme İzleyicisi'!$C47)),\"\")","v":0}]
[{"$f":"IF((LEN('Kilo Verme İzleyicisi'!$C48)=0),TRUE)","v":true},{"$f":"IFERROR(IF(A45,0,IF(LEN('Kilo Verme İzleyicisi'!$B48)=0,0,'Kilo Verme İzleyicisi'!$B48)),\"\")","v":"00:00:00"},{"$f":"IFERROR(IF(A45,0,IF(LEN('Kilo Verme İzleyicisi'!$C48)=0,0,'Kilo Verme İzleyicisi'!$C48)),\"\")","v":0}]
[{"$f":"IF((LEN('Kilo Verme İzleyicisi'!$C49)=0),TRUE)","v":true},{"$f":"IFERROR(IF(A46,0,IF(LEN('Kilo Verme İzleyicisi'!$B49)=0,0,'Kilo Verme İzleyicisi'!$B49)),\"\")","v":"00:00:00"},{"$f":"IFERROR(IF(A46,0,IF(LEN('Kilo Verme İzleyicisi'!$C49)=0,0,'Kilo Verme İzleyicisi'!$C49)),\"\")","v":0}]
[{"$f":"IF((LEN('Kilo Verme İzleyicisi'!$C50)=0),TRUE)","v":true},{"$f":"IFERROR(IF(A47,0,IF(LEN('Kilo Verme İzleyicisi'!$B50)=0,0,'Kilo Verme İzleyicisi'!$B50)),\"\")","v":"00:00:00"},{"$f":"IFERROR(IF(A47,0,IF(LEN('Kilo Verme İzleyicisi'!$C50)=0,0,'Kilo Verme İzleyicisi'!$C50)),\"\")","v":0}]
[{"$f":"IF((LEN('Kilo Verme İzleyicisi'!$C51)=0),TRUE)","v":true},{"$f":"IFERROR(IF(A48,0,IF(LEN('Kilo Verme İzleyicisi'!$B51)=0,0,'Kilo Verme İzleyicisi'!$B51)),\"\")","v":"00:00:00"},{"$f":"IFERROR(IF(A48,0,IF(LEN('Kilo Verme İzleyicisi'!$C51)=0,0,'Kilo Verme İzleyicisi'!$C51)),\"\")","v":0}]
[{"$f":"IF((LEN('Kilo Verme İzleyicisi'!$C52)=0),TRUE)","v":true},{"$f":"IFERROR(IF(A49,0,IF(LEN('Kilo Verme İzleyicisi'!$B52)=0,0,'Kilo Verme İzleyicisi'!$B52)),\"\")","v":"00:00:00"},{"$f":"IFERROR(IF(A49,0,IF(LEN('Kilo Verme İzleyicisi'!$C52)=0,0,'Kilo Verme İzleyicisi'!$C52)),\"\")","v":0}]
[{"$f":"IF((LEN('Kilo Verme İzleyicisi'!$C53)=0),TRUE)","v":true},{"$f":"IFERROR(IF(A50,0,IF(LEN('Kilo Verme İzleyicisi'!$B53)=0,0,'Kilo Verme İzleyicisi'!$B53)),\"\")","v":"00:00:00"},{"$f":"IFERROR(IF(A50,0,IF(LEN('Kilo Verme İzleyicisi'!$C53)=0,0,'Kilo Verme İzleyicisi'!$C53)),\"\")","v":0}]
[{"$f":"IF((LEN('Kilo Verme İzleyicisi'!$C54)=0),TRUE)","v":true},{"$f":"IFERROR(IF(A51,0,IF(LEN('Kilo Verme İzleyicisi'!$B54)=0,0,'Kilo Verme İzleyicisi'!$B54)),\"\")","v":"00:00:00"},{"$f":"IFERROR(IF(A51,0,IF(LEN('Kilo Verme İzleyicisi'!$C54)=0,0,'Kilo Verme İzleyicisi'!$C54)),\"\")","v":0}]
[{"$f":"IF((LEN('Kilo Verme İzleyicisi'!$C55)=0),TRUE)","v":true},{"$f":"IFERROR(IF(A52,0,IF(LEN('Kilo Verme İzleyicisi'!$B55)=0,0,'Kilo Verme İzleyicisi'!$B55)),\"\")","v":"00:00:00"},{"$f":"IFERROR(IF(A52,0,IF(LEN('Kilo Verme İzleyicisi'!$C55)=0,0,'Kilo Verme İzleyicisi'!$C55)),\"\")","v":0}]
[{"$f":"IF((LEN('Kilo Verme İzleyicisi'!$C56)=0),TRUE)","v":true},{"$f":"IFERROR(IF(A53,0,IF(LEN('Kilo Verme İzleyicisi'!$B56)=0,0,'Kilo Verme İzleyicisi'!$B56)),\"\")","v":"00:00:00"},{"$f":"IFERROR(IF(A53,0,IF(LEN('Kilo Verme İzleyicisi'!$C56)=0,0,'Kilo Verme İzleyicisi'!$C56)),\"\")","v":0}]
[{"$f":"IF((LEN('Kilo Verme İzleyicisi'!$C57)=0),TRUE)","v":true},{"$f":"IFERROR(IF(A54,0,IF(LEN('Kilo Verme İzleyicisi'!$B57)=0,0,'Kilo Verme İzleyicisi'!$B57)),\"\")","v":"00:00:00"},{"$f":"IFERROR(IF(A54,0,IF(LEN('Kilo Verme İzleyicisi'!$C57)=0,0,'Kilo Verme İzleyicisi'!$C57)),\"\")","v":0}]
[{"$f":"IF((LEN('Kilo Verme İzleyicisi'!$C58)=0),TRUE)","v":true},{"$f":"IFERROR(IF(A55,0,IF(LEN('Kilo Verme İzleyicisi'!$B58)=0,0,'Kilo Verme İzleyicisi'!$B58)),\"\")","v":"00:00:00"},{"$f":"IFERROR(IF(A55,0,IF(LEN('Kilo Verme İzleyicisi'!$C58)=0,0,'Kilo Verme İzleyicisi'!$C58)),\"\")","v":0}]
[{"$f":"IF((LEN('Kilo Verme İzleyicisi'!$C59)=0),TRUE)","v":true},{"$f":"IFERROR(IF(A56,0,IF(LEN('Kilo Verme İzleyicisi'!$B59)=0,0,'Kilo Verme İzleyicisi'!$B59)),\"\")","v":"00:00:00"},{"$f":"IFERROR(IF(A56,0,IF(LEN('Kilo Verme İzleyicisi'!$C59)=0,0,'Kilo Verme İzleyicisi'!$C59)),\"\")","v":0}]
[{"$f":"IF((LEN('Kilo Verme İzleyicisi'!$C60)=0),TRUE)","v":true},{"$f":"IFERROR(IF(A57,0,IF(LEN('Kilo Verme İzleyicisi'!$B60)=0,0,'Kilo Verme İzleyicisi'!$B60)),\"\")","v":"00:00:00"},{"$f":"IFERROR(IF(A57,0,IF(LEN('Kilo Verme İzleyicisi'!$C60)=0,0,'Kilo Verme İzleyicisi'!$C60)),\"\")","v":0}]
[{"$f":"IF((LEN('Kilo Verme İzleyicisi'!$C61)=0),TRUE)","v":true},{"$f":"IFERROR(IF(A58,0,IF(LEN('Kilo Verme İzleyicisi'!$B61)=0,0,'Kilo Verme İzleyicisi'!$B61)),\"\")","v":"00:00:00"},{"$f":"IFERROR(IF(A58,0,IF(LEN('Kilo Verme İzleyicisi'!$C61)=0,0,'Kilo Verme İzleyicisi'!$C61)),\"\")","v":0}]
[{"$f":"IF((LEN('Kilo Verme İzleyicisi'!$C62)=0),TRUE)","v":true},{"$f":"IFERROR(IF(A59,0,IF(LEN('Kilo Verme İzleyicisi'!$B62)=0,0,'Kilo Verme İzleyicisi'!$B62)),\"\")","v":"00:00:00"},{"$f":"IFERROR(IF(A59,0,IF(LEN('Kilo Verme İzleyicisi'!$C62)=0,0,'Kilo Verme İzleyicisi'!$C62)),\"\")","v":0}]
[{"$f":"IF((LEN('Kilo Verme İzleyicisi'!$C63)=0),TRUE)","v":true},{"$f":"IFERROR(IF(A60,0,IF(LEN('Kilo Verme İzleyicisi'!$B63)=0,0,'Kilo Verme İzleyicisi'!$B63)),\"\")","v":"00:00:00"},{"$f":"IFERROR(IF(A60,0,IF(LEN('Kilo Verme İzleyicisi'!$C63)=0,0,'Kilo Verme İzleyicisi'!$C63)),\"\")","v":0}]
[{"$f":"IF((LEN('Kilo Verme İzleyicisi'!$C64)=0),TRUE)","v":true},{"$f":"IFERROR(IF(A61,0,IF(LEN('Kilo Verme İzleyicisi'!$B64)=0,0,'Kilo Verme İzleyicisi'!$B64)),\"\")","v":"00:00:00"},{"$f":"IFERROR(IF(A61,0,IF(LEN('Kilo Verme İzleyicisi'!$C64)=0,0,'Kilo Verme İzleyicisi'!$C64)),\"\")","v":0}]
[{"$f":"IF((LEN('Kilo Verme İzleyicisi'!$C65)=0),TRUE)","v":true},{"$f":"IFERROR(IF(A62,0,IF(LEN('Kilo Verme İzleyicisi'!$B65)=0,0,'Kilo Verme İzleyicisi'!$B65)),\"\")","v":"00:00:00"},{"$f":"IFERROR(IF(A62,0,IF(LEN('Kilo Verme İzleyicisi'!$C65)=0,0,'Kilo Verme İzleyicisi'!$C65)),\"\")","v":0}]
[{"$f":"IF((LEN('Kilo Verme İzleyicisi'!$C66)=0),TRUE)","v":true},{"$f":"IFERROR(IF(A63,0,IF(LEN('Kilo Verme İzleyicisi'!$B66)=0,0,'Kilo Verme İzleyicisi'!$B66)),\"\")","v":"00:00:00"},{"$f":"IFERROR(IF(A63,0,IF(LEN('Kilo Verme İzleyicisi'!$C66)=0,0,'Kilo Verme İzleyicisi'!$C66)),\"\")","v":0}]
[{"$f":"IF((LEN('Kilo Verme İzleyicisi'!$C67)=0),TRUE)","v":true},{"$f":"IFERROR(IF(A64,0,IF(LEN('Kilo Verme İzleyicisi'!$B67)=0,0,'Kilo Verme İzleyicisi'!$B67)),\"\")","v":"00:00:00"},{"$f":"IFERROR(IF(A64,0,IF(LEN('Kilo Verme İzleyicisi'!$C67)=0,0,'Kilo Verme İzleyicisi'!$C67)),\"\")","v":0}]
[{"$f":"IF((LEN('Kilo Verme İzleyicisi'!$C68)=0),TRUE)","v":true},{"$f":"IFERROR(IF(A65,0,IF(LEN('Kilo Verme İzleyicisi'!$B68)=0,0,'Kilo Verme İzleyicisi'!$B68)),\"\")","v":"00:00:00"},{"$f":"IFERROR(IF(A65,0,IF(LEN('Kilo Verme İzleyicisi'!$C68)=0,0,'Kilo Verme İzleyicisi'!$C68)),\"\")","v":0}]
[{"$f":"IF((LEN('Kilo Verme İzleyicisi'!$C69)=0),TRUE)","v":true},{"$f":"IFERROR(IF(A66,0,IF(LEN('Kilo Verme İzleyicisi'!$B69)=0,0,'Kilo Verme İzleyicisi'!$B69)),\"\")","v":"00:00:00"},{"$f":"IFERROR(IF(A66,0,IF(LEN('Kilo Verme İzleyicisi'!$C69)=0,0,'Kilo Verme İzleyicisi'!$C69)),\"\")","v":0}]
[{"$f":"IF((LEN('Kilo Verme İzleyicisi'!$C70)=0),TRUE)","v":true},{"$f":"IFERROR(IF(A67,0,IF(LEN('Kilo Verme İzleyicisi'!$B70)=0,0,'Kilo Verme İzleyicisi'!$B70)),\"\")","v":"00:00:00"},{"$f":"IFERROR(IF(A67,0,IF(LEN('Kilo Verme İzleyicisi'!$C70)=0,0,'Kilo Verme İzleyicisi'!$C70)),\"\")","v":0}]
[{"$f":"IF((LEN('Kilo Verme İzleyicisi'!$C71)=0),TRUE)","v":true},{"$f":"IFERROR(IF(A68,0,IF(LEN('Kilo Verme İzleyicisi'!$B71)=0,0,'Kilo Verme İzleyicisi'!$B71)),\"\")","v":"00:00:00"},{"$f":"IFERROR(IF(A68,0,IF(LEN('Kilo Verme İzleyicisi'!$C71)=0,0,'Kilo Verme İzleyicisi'!$C71)),\"\")","v":0}]
[{"$f":"IF((LEN('Kilo Verme İzleyicisi'!$C72)=0),TRUE)","v":true},{"$f":"IFERROR(IF(A69,0,IF(LEN('Kilo Verme İzleyicisi'!$B72)=0,0,'Kilo Verme İzleyicisi'!$B72)),\"\")","v":"00:00:00"},{"$f":"IFERROR(IF(A69,0,IF(LEN('Kilo Verme İzleyicisi'!$C72)=0,0,'Kilo Verme İzleyicisi'!$C72)),\"\")","v":0}]
[{"$f":"IF((LEN('Kilo Verme İzleyicisi'!$C73)=0),TRUE)","v":true},{"$f":"IFERROR(IF(A70,0,IF(LEN('Kilo Verme İzleyicisi'!$B73)=0,0,'Kilo Verme İzleyicisi'!$B73)),\"\")","v":"00:00:00"},{"$f":"IFERROR(IF(A70,0,IF(LEN('Kilo Verme İzleyicisi'!$C73)=0,0,'Kilo Verme İzleyicisi'!$C73)),\"\")","v":0}]
[{"$f":"IF((LEN('Kilo Verme İzleyicisi'!$C74)=0),TRUE)","v":true},{"$f":"IFERROR(IF(A71,0,IF(LEN('Kilo Verme İzleyicisi'!$B74)=0,0,'Kilo Verme İzleyicisi'!$B74)),\"\")","v":"00:00:00"},{"$f":"IFERROR(IF(A71,0,IF(LEN('Kilo Verme İzleyicisi'!$C74)=0,0,'Kilo Verme İzleyicisi'!$C74)),\"\")","v":0}]
[{"$f":"IF((LEN('Kilo Verme İzleyicisi'!$C75)=0),TRUE)","v":true},{"$f":"IFERROR(IF(A72,0,IF(LEN('Kilo Verme İzleyicisi'!$B75)=0,0,'Kilo Verme İzleyicisi'!$B75)),\"\")","v":"00:00:00"},{"$f":"IFERROR(IF(A72,0,IF(LEN('Kilo Verme İzleyicisi'!$C75)=0,0,'Kilo Verme İzleyicisi'!$C75)),\"\")","v":0}]
[{"$f":"IF((LEN('Kilo Verme İzleyicisi'!$C76)=0),TRUE)","v":true},{"$f":"IFERROR(IF(A73,0,IF(LEN('Kilo Verme İzleyicisi'!$B76)=0,0,'Kilo Verme İzleyicisi'!$B76)),\"\")","v":"00:00:00"},{"$f":"IFERROR(IF(A73,0,IF(LEN('Kilo Verme İzleyicisi'!$C76)=0,0,'Kilo Verme İzleyicisi'!$C76)),\"\")","v":0}]
[{"$f":"IF((LEN('Kilo Verme İzleyicisi'!$C77)=0),TRUE)","v":true},{"$f":"IFERROR(IF(A74,0,IF(LEN('Kilo Verme İzleyicisi'!$B77)=0,0,'Kilo Verme İzleyicisi'!$B77)),\"\")","v":"00:00:00"},{"$f":"IFERROR(IF(A74,0,IF(LEN('Kilo Verme İzleyicisi'!$C77)=0,0,'Kilo Verme İzleyicisi'!$C77)),\"\")","v":0}]
[{"$f":"IF((LEN('Kilo Verme İzleyicisi'!$C78)=0),TRUE)","v":true},{"$f":"IFERROR(IF(A75,0,IF(LEN('Kilo Verme İzleyicisi'!$B78)=0,0,'Kilo Verme İzleyicisi'!$B78)),\"\")","v":"00:00:00"},{"$f":"IFERROR(IF(A75,0,IF(LEN('Kilo Verme İzleyicisi'!$C78)=0,0,'Kilo Verme İzleyicisi'!$C78)),\"\")","v":0}]
[{"$f":"IF((LEN('Kilo Verme İzleyicisi'!$C79)=0),TRUE)","v":true},{"$f":"IFERROR(IF(A76,0,IF(LEN('Kilo Verme İzleyicisi'!$B79)=0,0,'Kilo Verme İzleyicisi'!$B79)),\"\")","v":"00:00:00"},{"$f":"IFERROR(IF(A76,0,IF(LEN('Kilo Verme İzleyicisi'!$C79)=0,0,'Kilo Verme İzleyicisi'!$C79)),\"\")","v":0}]
[{"$f":"IF((LEN('Kilo Verme İzleyicisi'!$C80)=0),TRUE)","v":true},{"$f":"IFERROR(IF(A77,0,IF(LEN('Kilo Verme İzleyicisi'!$B80)=0,0,'Kilo Verme İzleyicisi'!$B80)),\"\")","v":"00:00:00"},{"$f":"IFERROR(IF(A77,0,IF(LEN('Kilo Verme İzleyicisi'!$C80)=0,0,'Kilo Verme İzleyicisi'!$C80)),\"\")","v":0}]
[{"$f":"IF((LEN('Kilo Verme İzleyicisi'!$C81)=0),TRUE)","v":true},{"$f":"IFERROR(IF(A78,0,IF(LEN('Kilo Verme İzleyicisi'!$B81)=0,0,'Kilo Verme İzleyicisi'!$B81)),\"\")","v":"00:00:00"},{"$f":"IFERROR(IF(A78,0,IF(LEN('Kilo Verme İzleyicisi'!$C81)=0,0,'Kilo Verme İzleyicisi'!$C81)),\"\")","v":0}]
[{"$f":"IF((LEN('Kilo Verme İzleyicisi'!$C82)=0),TRUE)","v":true},{"$f":"IFERROR(IF(A79,0,IF(LEN('Kilo Verme İzleyicisi'!$B82)=0,0,'Kilo Verme İzleyicisi'!$B82)),\"\")","v":"00:00:00"},{"$f":"IFERROR(IF(A79,0,IF(LEN('Kilo Verme İzleyicisi'!$C82)=0,0,'Kilo Verme İzleyicisi'!$C82)),\"\")","v":0}]
[{"$f":"IF((LEN('Kilo Verme İzleyicisi'!$C83)=0),TRUE)","v":true},{"$f":"IFERROR(IF(A80,0,IF(LEN('Kilo Verme İzleyicisi'!$B83)=0,0,'Kilo Verme İzleyicisi'!$B83)),\"\")","v":"00:00:00"},{"$f":"IFERROR(IF(A80,0,IF(LEN('Kilo Verme İzleyicisi'!$C83)=0,0,'Kilo Verme İzleyicisi'!$C83)),\"\")","v":0}]
[{"$f":"IF((LEN('Kilo Verme İzleyicisi'!$C84)=0),TRUE)","v":true},{"$f":"IFERROR(IF(A81,0,IF(LEN('Kilo Verme İzleyicisi'!$B84)=0,0,'Kilo Verme İzleyicisi'!$B84)),\"\")","v":"00:00:00"},{"$f":"IFERROR(IF(A81,0,IF(LEN('Kilo Verme İzleyicisi'!$C84)=0,0,'Kilo Verme İzleyicisi'!$C84)),\"\")","v":0}]
[{"$f":"IF((LEN('Kilo Verme İzleyicisi'!$C85)=0),TRUE)","v":true},{"$f":"IFERROR(IF(A82,0,IF(LEN('Kilo Verme İzleyicisi'!$B85)=0,0,'Kilo Verme İzleyicisi'!$B85)),\"\")","v":"00:00:00"},{"$f":"IFERROR(IF(A82,0,IF(LEN('Kilo Verme İzleyicisi'!$C85)=0,0,'Kilo Verme İzleyicisi'!$C85)),\"\")","v":0}]
[{"$f":"IF((LEN('Kilo Verme İzleyicisi'!$C86)=0),TRUE)","v":true},{"$f":"IFERROR(IF(A83,0,IF(LEN('Kilo Verme İzleyicisi'!$B86)=0,0,'Kilo Verme İzleyicisi'!$B86)),\"\")","v":"00:00:00"},{"$f":"IFERROR(IF(A83,0,IF(LEN('Kilo Verme İzleyicisi'!$C86)=0,0,'Kilo Verme İzleyicisi'!$C86)),\"\")","v":0}]
[{"$f":"IF((LEN('Kilo Verme İzleyicisi'!$C87)=0),TRUE)","v":true},{"$f":"IFERROR(IF(A84,0,IF(LEN('Kilo Verme İzleyicisi'!$B87)=0,0,'Kilo Verme İzleyicisi'!$B87)),\"\")","v":"00:00:00"},{"$f":"IFERROR(IF(A84,0,IF(LEN('Kilo Verme İzleyicisi'!$C87)=0,0,'Kilo Verme İzleyicisi'!$C87)),\"\")","v":0}]
[{"$f":"IF((LEN('Kilo Verme İzleyicisi'!$C88)=0),TRUE)","v":true},{"$f":"IFERROR(IF(A85,0,IF(LEN('Kilo Verme İzleyicisi'!$B88)=0,0,'Kilo Verme İzleyicisi'!$B88)),\"\")","v":"00:00:00"},{"$f":"IFERROR(IF(A85,0,IF(LEN('Kilo Verme İzleyicisi'!$C88)=0,0,'Kilo Verme İzleyicisi'!$C88)),\"\")","v":0}]
[{"$f":"IF((LEN('Kilo Verme İzleyicisi'!$C89)=0),TRUE)","v":true},{"$f":"IFERROR(IF(A86,0,IF(LEN('Kilo Verme İzleyicisi'!$B89)=0,0,'Kilo Verme İzleyicisi'!$B89)),\"\")","v":"00:00:00"},{"$f":"IFERROR(IF(A86,0,IF(LEN('Kilo Verme İzleyicisi'!$C89)=0,0,'Kilo Verme İzleyicisi'!$C89)),\"\")","v":0}]
[{"$f":"IF((LEN('Kilo Verme İzleyicisi'!$C90)=0),TRUE)","v":true},{"$f":"IFERROR(IF(A87,0,IF(LEN('Kilo Verme İzleyicisi'!$B90)=0,0,'Kilo Verme İzleyicisi'!$B90)),\"\")","v":"00:00:00"},{"$f":"IFERROR(IF(A87,0,IF(LEN('Kilo Verme İzleyicisi'!$C90)=0,0,'Kilo Verme İzleyicisi'!$C90)),\"\")","v":0}]
[{"$f":"IF((LEN('Kilo Verme İzleyicisi'!$C91)=0),TRUE)","v":true},{"$f":"IFERROR(IF(A88,0,IF(LEN('Kilo Verme İzleyicisi'!$B91)=0,0,'Kilo Verme İzleyicisi'!$B91)),\"\")","v":"00:00:00"},{"$f":"IFERROR(IF(A88,0,IF(LEN('Kilo Verme İzleyicisi'!$C91)=0,0,'Kilo Verme İzleyicisi'!$C91)),\"\")","v":0}]
[{"$f":"IF((LEN('Kilo Verme İzleyicisi'!$C92)=0),TRUE)","v":true},{"$f":"IFERROR(IF(A89,0,IF(LEN('Kilo Verme İzleyicisi'!$B92)=0,0,'Kilo Verme İzleyicisi'!$B92)),\"\")","v":"00:00:00"},{"$f":"IFERROR(IF(A89,0,IF(LEN('Kilo Verme İzleyicisi'!$C92)=0,0,'Kilo Verme İzleyicisi'!$C92)),\"\")","v":0}]
[{"$f":"IF((LEN('Kilo Verme İzleyicisi'!$C93)=0),TRUE)","v":true},{"$f":"IFERROR(IF(A90,0,IF(LEN('Kilo Verme İzleyicisi'!$B93)=0,0,'Kilo Verme İzleyicisi'!$B93)),\"\")","v":"00:00:00"},{"$f":"IFERROR(IF(A90,0,IF(LEN('Kilo Verme İzleyicisi'!$C93)=0,0,'Kilo Verme İzleyicisi'!$C93)),\"\")","v":0}]
[{"$f":"IF((LEN('Kilo Verme İzleyicisi'!$C94)=0),TRUE)","v":true},{"$f":"IFERROR(IF(A91,0,IF(LEN('Kilo Verme İzleyicisi'!$B94)=0,0,'Kilo Verme İzleyicisi'!$B94)),\"\")","v":"00:00:00"},{"$f":"IFERROR(IF(A91,0,IF(LEN('Kilo Verme İzleyicisi'!$C94)=0,0,'Kilo Verme İzleyicisi'!$C94)),\"\")","v":0}]
[{"$f":"IF((LEN('Kilo Verme İzleyicisi'!$C95)=0),TRUE)","v":true},{"$f":"IFERROR(IF(A92,0,IF(LEN('Kilo Verme İzleyicisi'!$B95)=0,0,'Kilo Verme İzleyicisi'!$B95)),\"\")","v":"00:00:00"},{"$f":"IFERROR(IF(A92,0,IF(LEN('Kilo Verme İzleyicisi'!$C95)=0,0,'Kilo Verme İzleyicisi'!$C95)),\"\")","v":0}]
[{"$f":"IF((LEN('Kilo Verme İzleyicisi'!$C96)=0),TRUE)","v":true},{"$f":"IFERROR(IF(A93,0,IF(LEN('Kilo Verme İzleyicisi'!$B96)=0,0,'Kilo Verme İzleyicisi'!$B96)),\"\")","v":"00:00:00"},{"$f":"IFERROR(IF(A93,0,IF(LEN('Kilo Verme İzleyicisi'!$C96)=0,0,'Kilo Verme İzleyicisi'!$C96)),\"\")","v":0}]
[{"$f":"IF((LEN('Kilo Verme İzleyicisi'!$C97)=0),TRUE)","v":true},{"$f":"IFERROR(IF(A94,0,IF(LEN('Kilo Verme İzleyicisi'!$B97)=0,0,'Kilo Verme İzleyicisi'!$B97)),\"\")","v":"00:00:00"},{"$f":"IFERROR(IF(A94,0,IF(LEN('Kilo Verme İzleyicisi'!$C97)=0,0,'Kilo Verme İzleyicisi'!$C97)),\"\")","v":0}]
[{"$f":"IF((LEN('Kilo Verme İzleyicisi'!$C98)=0),TRUE)","v":true},{"$f":"IFERROR(IF(A95,0,IF(LEN('Kilo Verme İzleyicisi'!$B98)=0,0,'Kilo Verme İzleyicisi'!$B98)),\"\")","v":"00:00:00"},{"$f":"IFERROR(IF(A95,0,IF(LEN('Kilo Verme İzleyicisi'!$C98)=0,0,'Kilo Verme İzleyicisi'!$C98)),\"\")","v":0}]
[{"$f":"IF((LEN('Kilo Verme İzleyicisi'!$C99)=0),TRUE)","v":true},{"$f":"IFERROR(IF(A96,0,IF(LEN('Kilo Verme İzleyicisi'!$B99)=0,0,'Kilo Verme İzleyicisi'!$B99)),\"\")","v":"00:00:00"},{"$f":"IFERROR(IF(A96,0,IF(LEN('Kilo Verme İzleyicisi'!$C99)=0,0,'Kilo Verme İzleyicisi'!$C99)),\"\")","v":0}]
[{"$f":"IF((LEN('Kilo Verme İzleyicisi'!$C100)=0),TRUE)","v":true},{"$f":"IFERROR(IF(A97,0,IF(LEN('Kilo Verme İzleyicisi'!$B100)=0,0,'Kilo Verme İzleyicisi'!$B100)),\"\")","v":"00:00:00"},{"$f":"IFERROR(IF(A97,0,IF(LEN('Kilo Verme İzleyicisi'!$C100)=0,0,'Kilo Verme İzleyicisi'!$C100)),\"\")","v":0}]
[{"$f":"IF((LEN('Kilo Verme İzleyicisi'!$C101)=0),TRUE)","v":true},{"$f":"IFERROR(IF(A98,0,IF(LEN('Kilo Verme İzleyicisi'!$B101)=0,0,'Kilo Verme İzleyicisi'!$B101)),\"\")","v":"00:00:00"},{"$f":"IFERROR(IF(A98,0,IF(LEN('Kilo Verme İzleyicisi'!$C101)=0,0,'Kilo Verme İzleyicisi'!$C101)),\"\")","v":0}]
[{"$f":"IF((LEN('Kilo Verme İzleyicisi'!$C102)=0),TRUE)","v":true},{"$f":"IFERROR(IF(A99,0,IF(LEN('Kilo Verme İzleyicisi'!$B102)=0,0,'Kilo Verme İzleyicisi'!$B102)),\"\")","v":"00:00:00"},{"$f":"IFERROR(IF(A99,0,IF(LEN('Kilo Verme İzleyicisi'!$C102)=0,0,'Kilo Verme İzleyicisi'!$C102)),\"\")","v":0}]
[{"$f":"IF((LEN('Kilo Verme İzleyicisi'!$C103)=0),TRUE)","v":true},{"$f":"IFERROR(IF(A100,0,IF(LEN('Kilo Verme İzleyicisi'!$B103)=0,0,'Kilo Verme İzleyicisi'!$B103)),\"\")","v":"00:00:00"},{"$f":"IFERROR(IF(A100,0,IF(LEN('Kilo Verme İzleyicisi'!$C103)=0,0,'Kilo Verme İzleyicisi'!$C103)),\"\")","v":0}]
[{"$f":"IF((LEN('Kilo Verme İzleyicisi'!$C104)=0),TRUE)","v":true},{"$f":"IFERROR(IF(A101,0,IF(LEN('Kilo Verme İzleyicisi'!$B104)=0,0,'Kilo Verme İzleyicisi'!$B104)),\"\")","v":"00:00:00"},{"$f":"IFERROR(IF(A101,0,IF(LEN('Kilo Verme İzleyicisi'!$C104)=0,0,'Kilo Verme İzleyicisi'!$C104)),\"\")","v":0}]
[{"$f":"IF((LEN('Kilo Verme İzleyicisi'!$C105)=0),TRUE)","v":true},{"$f":"IFERROR(IF(A102,0,IF(LEN('Kilo Verme İzleyicisi'!$B105)=0,0,'Kilo Verme İzleyicisi'!$B105)),\"\")","v":"00:00:00"},{"$f":"IFERROR(IF(A102,0,IF(LEN('Kilo Verme İzleyicisi'!$C105)=0,0,'Kilo Verme İzleyicisi'!$C105)),\"\")","v":0}]
[{"$f":"IF((LEN('Kilo Verme İzleyicisi'!$C106)=0),TRUE)","v":true},{"$f":"IFERROR(IF(A103,0,IF(LEN('Kilo Verme İzleyicisi'!$B106)=0,0,'Kilo Verme İzleyicisi'!$B106)),\"\")","v":"00:00:00"},{"$f":"IFERROR(IF(A103,0,IF(LEN('Kilo Verme İzleyicisi'!$C106)=0,0,'Kilo Verme İzleyicisi'!$C106)),\"\")","v":0}]
[{"$f":"IF((LEN('Kilo Verme İzleyicisi'!$C107)=0),TRUE)","v":true},{"$f":"IFERROR(IF(A104,0,IF(LEN('Kilo Verme İzleyicisi'!$B107)=0,0,'Kilo Verme İzleyicisi'!$B107)),\"\")","v":"00:00:00"},{"$f":"IFERROR(IF(A104,0,IF(LEN('Kilo Verme İzleyicisi'!$C107)=0,0,'Kilo Verme İzleyicisi'!$C107)),\"\")","v":0}]
[{"$f":"IF((LEN('Kilo Verme İzleyicisi'!$C108)=0),TRUE)","v":true},{"$f":"IFERROR(IF(A105,0,IF(LEN('Kilo Verme İzleyicisi'!$B108)=0,0,'Kilo Verme İzleyicisi'!$B108)),\"\")","v":"00:00:00"},{"$f":"IFERROR(IF(A105,0,IF(LEN('Kilo Verme İzleyicisi'!$C108)=0,0,'Kilo Verme İzleyicisi'!$C108)),\"\")","v":0}]
[{"$f":"IF((LEN('Kilo Verme İzleyicisi'!$C109)=0),TRUE)","v":true},{"$f":"IFERROR(IF(A106,0,IF(LEN('Kilo Verme İzleyicisi'!$B109)=0,0,'Kilo Verme İzleyicisi'!$B109)),\"\")","v":"00:00:00"},{"$f":"IFERROR(IF(A106,0,IF(LEN('Kilo Verme İzleyicisi'!$C109)=0,0,'Kilo Verme İzleyicisi'!$C109)),\"\")","v":0}]
[{"$f":"IF((LEN('Kilo Verme İzleyicisi'!$C110)=0),TRUE)","v":true},{"$f":"IFERROR(IF(A107,0,IF(LEN('Kilo Verme İzleyicisi'!$B110)=0,0,'Kilo Verme İzleyicisi'!$B110)),\"\")","v":"00:00:00"},{"$f":"IFERROR(IF(A107,0,IF(LEN('Kilo Verme İzleyicisi'!$C110)=0,0,'Kilo Verme İzleyicisi'!$C110)),\"\")","v":0}]